bitfinex/quotes_ETHUSD_20240825
["timestamp","ask_amount","ask_price","bid_price","bid_amount"]
[1724571772873,3.64992,2739.8,2739.3,2.2693]
[1724571773286,3.64956,2740.1,2739.0,6.02018]
[1724571773617,3.65004,2739.7,2739.1,3.65077]
[1724571773823,7.2997,2739.9,2739.2,3.65067]
[1724571774115,9.68572,2740.3,2739.6,3.65013]
[1724571774335,3.64939,2740.2,2739.6,3.65013]
[1724571774541,3.64901,2740.5,2739.7,3.64999]
[1724571774680,3.64901,2740.5,2740.0,3.64959]
[1724571774880,3.64877,2740.7,2740.1,0.0729827]
[1724571775191,3.64877,2740.7,2740.0,3.64951]
[1724571775400,3.64877,2740.7,2740.1,2.2693]
[1724571776089,3.64901,2740.5,2740.1,2.2693]
[1724571776293,4.378788,2740.5,2740.1,2.2693]
[1724571776493,3.64877,2740.7,2740.1,5.9188]
[1724571776803,7.29758,2740.7,2740.1,2.2693]
[1724571776999,3.64883,2740.6,2740.1,2.2693]
[1724571777201,9.8471,2741.0,2740.1,2.2693]
[1724571777202,3.64903,2740.5,2740.1,2.2693]
[1724571778290,3.64903,2740.5,2739.4,2.2693]
[1724571778484,3.64903,2740.5,2740.0,2.2693]
[1724571778732,7.29755,2740.7,2740.0,2.2693]
[1724571778939,3.64891,2740.6,2740.0,5.91888]
[1724571779235,3.649,2740.5,2740.0,2.2693]
[1724571779579,7.29755,2740.7,2740.0,5.9189]
[1724571779783,3.6493,2740.3,2739.6,5.91936]
[1724571780398,3.64903,2740.5,2739.8,3.64981]
[1724571780599,11.10875,2740.7,2740.0,3.64962]
[1724571780928,7.46,2740.7,2740.4,3.64902]
[1724571781132,3.64838,2741.0,2740.4,3.64902]
[1724571781329,3.64838,2741.0,2740.2,3.64924]
[1724571781330,3.64866,2740.8,2740.2,3.64924]
[1724571781482,3.64852,2740.9,2740.2,3.64924]
[1724571781686,3.64852,2740.9,2740.3,3.64921]
[1724571781928,3.64818,2741.1,2740.4,3.64907]
[1724571782229,3.64818,2741.1,2740.6,2.4693]
[1724571782586,3.64818,2741.1,2740.6,6.11811]
[1724571782932,3.64793,2741.3,2740.7,3.64861]
[1724571783224,7.46,2741.5,2741.1,6.11741]
[1724571783430,3.64739,2741.7,2741.1,2.4693]
[1724571783929,3.64739,2741.7,2741.1,6.11743]
[1724571784289,3.6475,2741.6,2741.1,2.4693]
[1724571784939,3.64739,2741.7,2741.1,2.4693]
[1724571785826,3.64751,2741.6,2741.1,2.4693]
[1724571786231,3.64751,2741.6,2740.8,2.4693]
[1724571786232,0.72949,2741.6,2740.8,2.4693]
[1724571786442,3.64801,2741.3,2740.8,2.4693]
[1724571786796,3.64801,2741.3,2740.8,6.11785]
[1724571787411,3.6477,2741.5,2740.8,6.11785]
[1724571787609,3.6477,2741.5,2740.9,3.64833]
[1724571787835,4.68610787,2741.5,2740.8,6.11785]
[1724571788003,3.64801,2741.3,2740.8,2.4693]
[1724571788207,3.64808,2741.2,2740.8,2.4693]
[1724571788404,3.64865,2740.8,2739.8,7.34]
[1724571788706,3.64836,2741.0,2740.4,2.4693]
[1724571788930,3.64836,2741.0,2740.4,6.1184]
[1724571789524,7.29677,2741.0,2740.4,6.1184]
[1724571789737,3.64852,2740.9,2740.4,2.4693]
[1724571790042,4.378208,2740.9,2740.4,2.4693]
[1724571790244,4.378208,2740.9,2740.4,6.11837]
[1724571790465,3.64839,2741.0,2740.4,6.11837]
[1724571790819,3.64839,2741.0,2740.4,9.76738]
[1724571791143,3.64839,2741.0,2740.4,6.11831]
[1724571791888,11.1081,2741.2,2740.7,3.64866]
[1724571792156,11.1081,2741.2,2740.9,3.64835]
[1724571792157,7.46,2741.2,2740.9,3.64835]
[1724571792411,3.6478,2741.4,2740.7,3.64859]
[1724571792707,6.00215779,2741.4,2740.7,3.64859]
[1724571793004,3.64793,2741.3,2740.7,3.64859]
[1724571793509,3.64805,2741.2,2740.7,3.64859]
[1724571793704,3.64831,2741.0,2740.5,3.6489]
[1724571794377,0.364805,2741.1,2740.4,6.11828]
[1724571794578,3.64808,2741.2,2740.4,6.11828]
[1724571795009,3.64808,2741.2,2740.6,3.64875]
[1724571795608,7.29621,2741.2,2740.6,3.64875]
[1724571795915,3.64808,2741.2,2740.7,3.64865]
[1724571796209,6.39630787,2741.5,2740.9,2.4693]
[1724571796210,7.68616787,2741.5,2740.9,2.4693]
[1724571796426,3.64798,2741.3,2740.9,2.4693]
[1724571797226,3.64778,2741.4,2740.9,2.4693]
[1724571797372,11.10757,2741.6,2741.0,3.64822]
[1724571797574,3.64727,2741.8,2741.1,3.64809]
[1724571798520,3.64727,2741.8,2741.1,7.36910446]
[1724571798734,7.29462,2741.8,2741.2,3.648]
[1724571798937,3.64741,2741.7,2741.2,3.648]
[1724571799079,3.64741,2741.7,2741.0,3.64818]
[1724571799575,11.10711,2741.9,2741.3,3.64778]
[1724571800801,7.46,2741.9,2741.4,3.64773]
[1724571801012,7.46,2741.9,2741.3,3.64778]
[1724571801013,11.10712,2741.9,2741.3,3.64778]
[1724571801228,7.46,2741.9,2741.3,3.64778]
[1724571801540,7.46,2741.9,2741.4,3.64776]
[1724571801711,7.46,2741.9,2741.6,3.6474]
[1724571801878,11.10651,2742.4,2741.7,2.3907]
[1724571802082,7.29246,2742.6,2742.0,3.64694]
[1724571802280,3.64619,2742.6,2742.0,3.64694]
[1724571802479,3.64619,2742.6,2742.0,7.29383]
[1724571802723,3.64619,2742.6,2742.0,3.64689]
[1724571803058,3.64619,2742.6,2742.0,7.29377]
[1724571803178,8.767705,2742.6,2742.1,2.3907]
[1724571803377,3.64635,2742.5,2742.1,2.3907]
[1724571803598,5.121405,2742.6,2742.1,2.3907]
[1724571803802,11.10605,2742.7,2742.1,6.03745]
[1724571804254,11.10605,2742.7,2742.2,3.64669]
[1724571804400,14.75221,2742.7,2742.1,2.3907]
[1724571804600,11.10605,2742.7,2742.1,2.3907]
[1724571804945,11.10605,2742.7,2742.1,6.03744]
[1724571805128,14.75221,2742.7,2742.1,2.3907]
[1724571805837,3.64618,2742.6,2742.1,2.3907]
[1724571807197,3.64618,2742.6,2742.1,6.03753]
[1724571807654,3.64618,2742.6,2742.1,2.3907]
[1724571808165,7.29246,2742.6,2742.1,2.3907]
[1724571808450,3.64618,2742.6,2742.1,2.3907]
[1724571809553,3.64612,2742.7,2742.1,6.03753]
[1724571810050,3.64638,2742.5,2741.9,3.64708]
[1724571810552,7.29278,2742.5,2741.8,6.03786]
[1724571810861,3.64659,2742.3,2741.8,2.3907]
[1724571811007,3.64693,2742.1,2741.5,6.03833]
[1724571812131,3.64661,2742.3,2741.6,3.64749]
[1724571812359,6.73526872,2742.6,2741.7,3.64731]
[1724571812545,3.0,2742.5,2741.9,3.64699]
[1724571812846,2.4432,2742.8,2741.6,2.3907]
[1724571812847,3.6466,2742.3,2741.6,2.3907]
[1724571813016,3.6468,2742.2,2741.6,6.03812]
[1724571813576,3.6466,2742.3,2741.7,3.64736]
[1724571813876,3.64685,2742.1,2741.6,2.3907]
[1724571814070,3.64698,2742.0,2741.4,3.64773]
[1724571814221,3.64698,2742.0,2741.5,3.64762]
[1724571814920,3.64698,2742.0,2741.3,7.29565]
[1724571815229,3.64698,2742.0,2741.4,3.64766]
[1724571817215,7.46,2742.2,2741.1,6.03881]
[1724571817413,3.6475,2741.6,2741.1,6.03881]
[1724571817619,3.6475,2741.6,2741.1,2.3907]
[1724571817929,3.64772,2741.5,2740.9,3.64835]
[1724571818128,3.6475,2741.6,2740.9,3.64833]
[1724571818745,3.64731,2741.8,2741.2,3.64792]
[1724571818917,3.0,2742.1,2741.3,3.64786]
[1724571819122,3.0,2742.1,2741.2,2.3907]
[1724571819123,6.64686,2742.1,2741.5,3.64752]
[1724571819485,1.45318588,2742.1,2741.7,3.64735]
[1724571819680,7.46,2742.2,2741.7,3.64735]
[1724571820016,11.10672,2742.2,2741.7,6.03805]
[1724571820222,14.75352,2742.2,2741.7,2.3907]
[1724571820425,3.64706,2742.0,2741.4,2.3751]
[1724571820773,11.10678,2742.2,2741.4,6.02277]
[1724571820937,2.64057687,2742.1,2741.4,6.02277]
[1724571821269,2.64057687,2742.1,2741.4,2.3751]
[1724571821469,3.64754,2741.6,2741.1,2.3751]
[1724571822377,3.6478,2741.4,2740.8,9.67207]
[1724571823099,3.64754,2741.6,2740.9,3.64841]
[1724571823307,3.64754,2741.6,2741.1,3.64811]
[1724571824023,11.10731,2741.8,2741.1,7.2962]
[1724571824196,7.46,2741.8,2741.2,2.3751]
[1724571824373,7.46,2741.8,2741.3,3.64777]
[1724571824871,3.64746,2741.7,2741.2,2.3751]
[1724571825395,3.64746,2741.7,2741.1,3.64808]
[1724571825798,3.64746,2741.7,2741.1,3.64806]
[1724571826282,3.64746,2741.7,2741.1,7.29615]
[1724571826483,3.64746,2741.7,2741.1,3.64806]
[1724571827171,3.64746,2741.7,2741.0,2.3751]
[1724571827172,3.64758,2741.6,2741.0,6.02339]
[1724571827800,3.64746,2741.7,2741.1,3.64815]
[1724571828099,3.64746,2741.7,2741.1,7.29623]
[1724571828303,3.64717,2741.9,2741.2,3.64803]
[1724571828709,3.64732,2741.8,2741.2,3.64803]
[1724571828859,11.10691,2742.1,2741.0,2.3751]
[1724571829208,3.64691,2742.1,2741.6,2.3751]
[1724571830163,3.647,2742.0,2741.5,3.64755]
[1724571830701,3.64691,2742.1,2741.5,7.2951]
[1724571830909,3.64691,2742.1,2741.5,3.64755]
[1724571831105,7.29386,2742.1,2741.5,3.64755]
[1724571831293,3.64759,2741.6,2741.0,5.93361]
[1724571831690,3.64759,2741.6,2741.1,3.64816]
[1724571831862,3.64733,2741.8,2741.1,3.64806]
[1724571832267,3.64733,2741.8,2741.2,3.64796]
[1724571832503,3.64717,2741.9,2741.3,3.64789]
[1724571832700,7.29437,2741.9,2741.3,3.64789]
[1724571833280,3.64717,2741.9,2741.1,3.64806]
[1724571834219,3.64737,2741.7,2741.2,3.64803]
[1724571834689,3.64717,2741.9,2741.2,7.29595]
[1724571834891,7.29439,2741.9,2741.2,7.29595]
[1724571835436,3.64717,2741.9,2741.2,3.64792]
[1724571835649,7.29436,2741.9,2741.3,3.6479]
[1724571835938,2.3406,2742.4,2741.4,2.2854]
[1724571836102,3.64681,2742.2,2741.5,7.2951]
[1724571836302,3.64685,2742.1,2741.5,3.64753]
[1724571836488,3.64666,2742.3,2741.5,3.64753]
[1724571837138,3.64693,2742.1,2741.5,3.64753]
[1724571837296,7.29327,2742.3,2741.5,3.64753]
[1724571837613,3.64674,2742.2,2741.6,3.64741]
[1724571837795,3.64658,2742.3,2741.7,3.64735]
[1724571838195,14.75276,2742.5,2741.9,3.64708]
[1724571838402,11.10637,2742.5,2741.9,3.64708]
[1724571838688,14.75276,2742.5,2741.9,3.64708]
[1724571839800,11.10637,2742.5,2741.9,3.64708]
[1724571840027,11.10637,2742.5,2741.9,3.64703]
[1724571840193,7.46,2742.5,2742.0,2.2854]
[1724571840396,3.64638,2742.5,2742.0,2.2854]
[1724571840593,7.29278,2742.5,2742.0,2.2854]
[1724571840898,3.64638,2742.5,2742.0,2.2854]
[1724571842525,3.64681,2742.2,2741.7,2.4646]
[1724571842933,3.64707,2742.0,2741.4,2.4646]
[1724571843130,3.64707,2742.0,2741.4,6.11235]
[1724571843286,3.64706,2742.0,2741.4,6.11235]
[1724571843490,3.64677,2742.2,2741.4,6.11229]
[1724571843688,5.36634587,2742.2,2741.4,6.11229]
[1724571844400,3.64684,2742.1,2741.5,3.64756]
[1724571847035,3.64697,2742.0,2741.5,3.64756]
[1724571847395,3.64697,2742.0,2741.4,6.11227]
[1724571847735,3.64697,2742.0,2741.4,9.75995]
[1724571848707,5.36634587,2742.2,2741.6,3.64749]
[1724571849034,3.64677,2742.2,2741.6,3.64749]
[1724571849334,7.29358,2742.2,2741.6,3.64749]
[1724571849538,10.46,2742.4,2741.6,3.64743]
[1724571849742,10.46,2742.4,2741.8,3.64713]
[1724571849901,14.10647,2742.4,2741.8,3.64713]
[1724571850096,14.10647,2742.4,2741.8,7.29428]
[1724571850298,14.10647,2742.4,2741.8,3.64713]
[1724571850299,7.46,2742.4,2741.8,3.64713]
[1724571850543,11.10644,2742.4,2741.8,3.64713]
[1724571851120,3.64659,2742.3,2741.7,2.4646]
[1724571851412,3.6472,2741.9,2741.4,2.4646]
[1724571852241,3.6472,2741.9,2741.4,6.11234]
[1724571852497,3.64699,2742.0,2741.4,6.11226]
[1724571852811,3.64699,2742.0,2741.4,9.75995]
[1724571853119,3.64699,2742.0,2741.4,6.11226]
[1724571853658,3.64678,2742.2,2741.6,3.64743]
[1724571854349,3.64665,2742.3,2741.6,3.64743]
[1724571854350,3.64684,2742.1,2741.6,3.64743]
[1724571854645,7.29378,2742.1,2741.4,9.75991]
[1724571854847,3.64699,2742.0,2741.4,6.11225]
[1724571855037,3.64689,2742.1,2741.4,2.4646]
[1724571855233,6.455374,2742.1,2741.4,2.4646]
[1724571855613,3.6472,2741.9,2741.4,2.4646]
[1724571856513,3.64689,2742.1,2741.5,3.64762]
[1724571856835,3.64697,2742.0,2741.5,3.64762]
[1724571857033,3.64689,2742.1,2741.5,3.64762]
[1724571857556,3.64689,2742.1,2741.4,2.4646]
[1724571857557,3.64664,2742.3,2741.4,2.4646]
[1724571857721,3.64664,2742.3,2741.7,3.64724]
[1724571858047,3.64678,2742.2,2741.5,7.29508]
[1724571858353,3.64678,2742.2,2741.6,3.64748]
[1724571860074,3.64664,2742.3,2741.8,6.1118]
[1724571861363,3.64664,2742.3,2741.8,2.4646]
[1724571861558,3.64678,2742.2,2741.8,2.4646]
[1724571862436,3.64678,2742.2,2741.6,3.64742]
[1724571862776,3.64678,2742.2,2741.6,7.29485]
[1724571863079,7.46,2742.4,2741.6,2.4831]
[1724571863262,7.46,2742.4,2742.1,6.12986]
[1724571863447,7.29227,2742.7,2742.1,9.77662]
[1724571863448,3.64611,2742.7,2742.1,9.77662]
[1724571863792,9.73496872,2742.8,2742.2,3.64663]
[1724571864143,9.73496872,2742.8,2742.1,6.12986]
[1724571864144,3.64604,2742.7,2742.1,6.12986]
[1724571865189,3.64619,2742.6,2742.1,6.12986]
[1724571865693,9.73495872,2742.8,2742.1,6.12986]
[1724571865839,6.73495872,2742.8,2742.2,3.71952461]
[1724571866038,3.64597,2742.8,2742.2,3.71952461]
[1724571866468,3.64597,2742.8,2742.2,3.6466]
[1724571866674,3.64597,2742.8,2742.2,3.71952463]
[1724571866875,7.46,2742.9,2742.3,3.64655]
[1724571867052,9.73454872,2743.1,2742.4,3.64635]
[1724571867249,3.64588,2742.9,2742.1,6.12985]
[1724571867622,3.64591,2742.8,2742.3,3.64656]
[1724571868339,3.64619,2742.6,2742.1,6.12985]
[1724571868638,3.64665,2742.3,2741.8,2.4831]
[1724571870443,3.64638,2742.5,2741.8,2.4831]
[1724571870635,3.64638,2742.5,2742.0,3.64693]
[1724571871500,7.46,2742.6,2741.8,2.4831]
[1724571871725,11.10617,2742.6,2742.1,3.64676]
[1724571872115,3.64639,2742.5,2741.9,3.89534]
[1724571872299,3.64639,2742.5,2741.9,7.54236]
[1724571872701,7.46,2742.6,2741.9,0.24831]
[1724571872904,7.46,2742.6,2742.3,6.12958]
[1724571873216,7.46,2742.6,2742.1,3.64682]
[1724571873743,11.10627,2742.6,2742.1,3.64682]
[1724571874401,3.6463,2742.5,2741.9,6.37838]
[1724571874609,3.6466,2742.3,2741.7,3.64724]
[1724571874942,3.6466,2742.3,2741.8,3.64715]
[1724571875150,6.73528872,2742.5,2741.9,3.64709]
[1724571875344,11.10621,2742.6,2742.0,3.64695]
[1724571875711,11.10621,2742.6,2742.1,6.12993]
[1724571876042,7.46,2742.6,2742.2,3.64665]
[1724571878354,7.46,2742.6,2742.4,3.64641]
[1724571878560,3.64612,2742.7,2742.1,2.4831]
[1724571878707,7.29229,2742.7,2742.1,6.12992]
[1724571879052,3.0,2742.8,2742.1,6.12982]
[1724571879221,7.46,2743.0,2742.1,2.4831]
[1724571879419,3.64612,2742.7,2742.1,6.12986]
[1724571879639,3.64591,2742.8,2742.1,6.12986]
[1724571879809,3.64633,2742.5,2741.9,7.2941]
[1724571880010,3.64627,2742.6,2741.9,6.13012]
[1724571880246,3.64633,2742.5,2741.9,9.77709]
[1724571880748,9.00375872,2742.8,2741.9,2.4831]
[1724571881127,3.64618,2742.6,2742.1,3.64676]
[1724571881315,3.64615,2742.7,2742.0,7.29371]
[1724571881746,3.64615,2742.7,2742.1,3.6468]
[1724571882015,3.64617,2742.6,2742.1,3.6468]
[1724571882220,3.64617,2742.6,2741.9,6.13017]
[1724571882422,3.64636,2742.5,2742.0,3.64695]
[1724571883151,3.64617,2742.6,2742.0,3.64695]
[1724571883337,7.29243,2742.6,2742.0,3.64695]
[1724571883719,3.64639,2742.5,2742.0,3.64695]
[1724571884123,3.6465,2742.4,2741.9,2.4831]
[1724571884722,3.64639,2742.5,2741.9,6.13016]
[1724571885128,7.2928,2742.5,2741.9,6.13016]
[1724571885329,3.64639,2742.5,2741.9,6.13016]
[1724571885853,3.64639,2742.5,2742.0,3.64697]
[1724571886051,3.64618,2742.6,2742.0,3.64689]
[1724571886632,3.64618,2742.6,2741.9,2.4831]
[1724571886633,3.0,2742.9,2741.9,2.4831]
[1724571886875,3.0,2742.9,2742.0,2.3771]
[1724571887031,3.0,2742.9,2742.4,3.64642]
[1724571887670,7.46,2743.0,2742.5,6.02338]
[1724571887869,11.10565,2743.0,2742.5,6.02338]
[1724571888073,7.46,2743.0,2742.5,6.02333]
[1724571888930,7.46,2743.0,2742.5,9.66955]
[1724571889129,7.46,2743.0,2742.5,6.02332]
[1724571890092,7.46,2743.0,2742.5,9.66954]
[1724571890777,7.46,2743.0,2742.5,9.66955]
[1724571890987,7.46,2743.0,2742.7,3.64604]
[1724571891347,7.46,2743.0,2742.6,3.64608]
[1724571893573,3.64552,2743.1,2742.6,3.64608]
[1724571893895,3.64531,2743.3,2742.7,3.64602]
[1724571894101,3.6454,2743.2,2742.6,3.64608]
[1724571894245,3.64531,2743.3,2742.6,3.64608]
[1724571894246,3.64555,2743.1,2742.6,3.64608]
[1724571896213,3.64531,2743.3,2742.5,2.3771]
[1724571896568,3.64538,2743.2,2742.7,3.64603]
[1724571897484,3.64538,2743.2,2742.5,6.02328]
[1724571897849,3.64538,2743.2,2742.6,3.64615]
[1724571900903,3.64552,2743.1,2742.6,3.64615]
[1724571901260,2.4934,2743.3,2742.2,6.14586]
[1724571901469,3.64587,2742.9,2742.2,9.79246]
[1724571901790,3.64592,2742.8,2742.3,3.64656]
[1724571901962,3.64558,2743.1,2742.4,3.64641]
[1724571902168,6.64526,2743.3,2742.7,3.64604]
[1724571902362,6.64526,2743.3,2742.8,2.4992]
[1724571902578,3.64548,2743.2,2742.8,2.4992]
[1724571903272,3.64553,2743.1,2742.8,2.4992]
[1724571903452,3.64553,2743.1,2742.5,9.79171]
[1724571903653,3.64553,2743.1,2742.5,6.14542]
[1724571904397,3.64553,2743.1,2742.5,6.14541]
[1724571905135,3.64553,2743.1,2742.5,6.1454]
[1724571905569,7.29112,2743.1,2742.5,6.1454]
[1724571906299,3.64553,2743.1,2742.5,6.1454]
[1724571906756,7.29113,2743.1,2742.5,2.4992]
[1724571906951,7.29113,2743.1,2742.5,6.1455]
[1724571907690,3.0,2743.3,2742.3,3.64649]
[1724571907691,2.4934,2743.2,2742.3,3.64649]
[1724571907893,3.64598,2742.8,2742.3,3.64649]
[1724571909309,6.13888,2743.2,2742.6,3.64617]
[1724571909704,4.08071787,2743.2,2742.3,3.64655]
[1724571910001,3.64584,2742.9,2742.3,3.64647]
[1724571910402,3.64584,2742.9,2742.4,3.64642]
[1724571912309,3.64584,2742.9,2742.4,7.29284]
[1724571912640,3.64584,2742.9,2742.4,3.64642]
[1724571912967,2.4934,2743.2,2742.6,3.64608]
[1724571913169,7.46,2743.5,2742.9,3.64572]
[1724571913474,7.46,2743.5,2742.3,2.64858852]
[1724571913475,3.6452,2743.4,2742.7,3.64594]
[1724571913769,3.64553,2743.1,2742.6,2.4992]
[1724571914175,6.13872,2743.3,2742.6,6.14536]
[1724571914371,6.13872,2743.3,2742.7,3.64602]
[1724571914609,1.28804608,2743.1,2742.7,3.64602]
[1724571915296,1.28804608,2743.1,2742.7,7.29197]
[1724571915498,1.28804608,2743.1,2742.7,3.64595]
[1724571916426,1.28804608,2742.9,2742.5,3.64624]
[1724571916599,1.28804608,2742.9,2742.5,7.29244]
[1724571916799,1.28804608,2742.9,2742.5,7.29241]
[1724571917023,1.28804608,2742.9,2742.6,3.64617]
[1724571917230,1.28804608,2742.9,2742.5,3.6462]
[1724571917414,2.4934,2743.3,2742.3,4.40094289]
[1724571917720,1.28804608,2743.2,2742.8,3.64583]
[1724571918683,1.28804608,2743.2,2742.8,7.29166]
[1724571918882,1.28804608,2743.2,2742.8,3.64583]
[1724571920030,1.28804608,2743.2,2741.5,1.14672652]
[1724571920031,0.05,2742.5,2741.5,1.14672652]
[1724571920237,1.28804608,2742.9,2740.6,0.57034363]
[1724571920238,3.64856,2740.8,2740.6,0.57034363]
[1724571920536,0.364856,2740.7,2740.2,0.57034363]
[1724571920838,1.28804608,2741.0,2740.4,3.64908]
[1724571920988,1.28804608,2740.8,2740.2,3.64935]
[1724571921188,1.88512848,2741.5,2740.1,3.64949]
[1724571921189,1.28804608,2740.6,2740.1,3.64949]
[1724571921449,3.64829,2741.1,2740.1,3.64949]
[1724571921450,1.28804608,2740.8,2740.1,3.64949]
[1724571921591,1.28804608,2740.8,2740.3,3.64922]
[1724571921788,1.28804608,2740.8,2740.6,3.64882]
[1724571922151,1.88512848,2741.7,2740.9,3.64831]
[1724571922152,1.28804608,2741.4,2740.9,3.64831]
[1724571922329,1.28804608,2741.4,2740.5,2.3467]
[1724571922330,1.28804608,2741.2,2740.6,3.64882]
[1724571922506,3.64754,2741.6,2740.6,3.64882]
[1724571922507,3.64754,2741.6,2740.9,3.64843]
[1724571922895,3.64738,2741.7,2740.9,3.64843]
[1724571923096,3.64751,2741.6,2740.9,4.378143]
[1724571923649,3.64763,2741.5,2740.9,0.729713]
[1724571924728,3.64799,2741.3,2740.6,3.64883]
[1724571925223,7.29602,2741.3,2740.6,3.64883]
[1724571925674,3.64799,2741.3,2740.6,3.64883]
[1724571926228,3.64799,2741.3,2740.7,3.64869]
[1724571926425,3.64777,2741.4,2740.7,3.64869]
[1724571926629,3.64777,2741.4,2740.8,0.364869]
[1724571927752,14.20261274,2741.8,2741.0,3.64819]
[1724571927922,14.20261274,2741.8,2740.8,0.364869]
[1724571928122,3.64753,2741.6,2740.9,3.64842]
[1724571928323,11.10733,2741.8,2740.9,3.64842]
[1724571928519,3.64738,2741.7,2741.0,4.0496189]
[1724571928856,3.64739,2741.7,2741.1,3.64815]
[1724571929061,14.20258274,2741.8,2741.1,3.64815]
[1724571929311,3.64751,2741.6,2740.9,3.64842]
[1724571930012,3.64768,2741.5,2740.9,3.64842]
[1724571930375,3.64751,2741.6,2740.9,3.64842]
[1724571930566,3.64751,2741.6,2740.9,4.378127]
[1724571930969,7.29513,2741.6,2740.9,4.378127]
[1724571931362,3.6477,2741.5,2740.9,4.378127]
[1724571932485,14.20254274,2741.8,2740.9,0.729707]
[1724571932794,3.64729,2741.8,2740.9,3.64835]
[1724571933115,3.64752,2741.6,2741.0,3.64821]
[1724571934119,3.64752,2741.6,2740.9,3.64835]
[1724571934319,3.64752,2741.6,2740.7,6.11485]
[1724571934320,3.64782,2741.4,2740.8,3.6485]
[1724571934509,3.64782,2741.4,2740.8,4.624835]
[1724571934814,3.64752,2741.6,2740.8,4.624835]
[1724571934815,3.64752,2741.6,2740.9,3.64842]
[1724571934976,3.64764,2741.5,2740.9,3.64842]
[1724571936953,3.64764,2741.5,2741.0,3.6483]
[1724571937104,3.64764,2741.5,2740.9,3.64842]
[1724571937289,3.64764,2741.5,2740.9,3.64835]
[1724571937890,3.64764,2741.5,2740.9,3.64834]
[1724571938994,3.64764,2741.5,2740.9,7.29669]
[1724571939188,3.64764,2741.5,2741.0,3.64828]
[1724571939517,3.64764,2741.5,2740.9,7.29666]
[1724571939825,3.64764,2741.5,2741.0,3.64829]
[1724571940129,7.29488,2741.7,2741.0,3.64829]
[1724571940430,4.62689081,2741.7,2741.1,3.64807]
[1724571944228,3.6474,2741.7,2741.1,7.29613]
[1724571944390,3.64716,2741.9,2741.2,3.64802]
[1724571944589,3.64742,2741.7,2741.1,3.64806]
[1724571944992,3.6475,2741.6,2741.1,3.64806]
[1724571945900,3.6475,2741.6,2740.9,3.64838]
[1724571946102,3.64742,2741.7,2741.1,3.64816]
[1724571946330,8.024348,2741.7,2741.1,3.64816]
[1724571946533,3.64755,2741.6,2740.9,7.29664]
[1724571946918,3.64755,2741.6,2741.0,3.64827]
[1724571947447,4.376878,2741.7,2741.0,3.64827]
[1724571947794,4.376878,2741.7,2741.1,3.64815]
[1724571948698,4.376878,2741.7,2741.1,3.64808]
[1724571949020,3.64742,2741.7,2741.1,3.64808]
[1724571949593,3.64742,2741.7,2741.2,2.3311]
[1724571950239,6.11916,2742.2,2740.8,0.976335]
[1724571950240,11.10638,2742.5,2741.8,5.97823]
[1724571950421,3.64609,2742.7,2741.8,2.3311]
[1724571950737,1.53052527,2742.6,2742.2,3.64663]
[1724571951539,7.46,2742.8,2742.4,3.64633]
[1724571951833,3.64564,2743.0,2742.4,3.64633]
[1724571951995,3.64577,2742.9,2742.4,3.64633]
[1724571953226,3.64577,2742.9,2742.2,3.64661]
[1724571953424,7.29165,2742.9,2742.3,3.64655]
[1724571953738,4.374935,2742.9,2742.4,3.64641]
[1724571954057,4.374935,2742.9,2742.5,2.3311]
[1724571954241,0.729165,2742.9,2742.5,2.3311]
[1724571954414,0.729165,2742.9,2742.5,6.05028169]
[1724571954615,3.64558,2743.1,2742.5,5.97736]
[1724571954964,3.64558,2743.1,2742.5,5.97731]
[1724571955101,11.59871861,2743.2,2742.6,3.64614]
[1724571956117,11.59871861,2743.2,2742.7,3.64592]
[1724571956118,7.95331861,2743.2,2742.7,3.64592]
[1724571956314,0.49331861,2743.2,2742.7,3.64592]
[1724571959589,0.49331861,2743.2,2742.8,3.6458]
[1724571959746,3.6452,2743.4,2742.7,7.29187]
[1724571959945,3.6452,2743.4,2742.7,3.64592]
[1724571960264,3.64526,2743.3,2742.7,3.64592]
[1724571960796,3.0,2743.5,2743.0,2.3361]
[1724571960949,11.10423,2744.1,2743.1,0.23361]
[1724571961289,7.46,2744.1,2743.7,3.6446]
[1724571961485,3.64398,2744.3,2743.7,3.6446]
[1724571961690,2.331398,2744.2,2743.7,3.6446]
[1724571962186,2.331398,2744.2,2743.7,7.28921]
[1724571962402,2.331398,2744.2,2743.8,3.64445]
[1724571962616,2.331398,2744.2,2743.9,3.64441]
[1724571962768,7.46,2744.4,2743.9,3.64441]
[1724571963293,11.10378,2744.4,2743.9,3.64441]
[1724571963464,11.10378,2744.4,2743.7,7.28922]
[1724571963665,11.10378,2744.4,2743.8,3.64456]
[1724571964662,3.64394,2744.3,2743.5,5.981]
[1724571965011,3.64394,2744.3,2743.5,2.3361]
[1724571965012,4.57000074,2744.3,2743.5,2.3361]
[1724571965222,3.64445,2743.9,2743.3,7.29029]
[1724571965354,3.09525274,2744.0,2743.4,3.64509]
[1724571965692,3.09525274,2744.0,2743.3,3.64514]
[1724571965898,3.64424,2744.1,2743.4,2.3361]
[1724571966189,3.64424,2744.1,2743.6,3.64481]
[1724571966375,5.118708,2744.3,2743.4,2.3361]
[1724571966376,1.474748,2744.3,2743.8,3.64449]
[1724571966693,8.118688,2744.3,2743.8,3.64449]
[1724571966998,4.65312154,2744.2,2743.6,3.64475]
[1724571967301,8.29727154,2744.2,2743.6,3.64473]
[1724571967453,4.65312154,2744.2,2743.6,3.64473]
[1724571967657,4.65312154,2744.2,2743.7,3.64467]